Cogmind - Beta 13 @@@ ROGUE MODE // 2024.05.11 @ 16:25:25 Player: RedEssence Result: Destroyed by Y-45 Defender with Heavy Assault Rifle Performance ------------- Evolutions (2) 1000 Regions Visited (6) 1200 Robots Destroyed (62) 310 Value Destroyed (1983) 1983 Prototype IDs (1) 20 Alien Tech Used (0) 0 Bonus (300) 300 TOTAL SCORE: 4813 Bonus ------- Aligned with FarCom 300 Cogmind --------- Core Integrity 0/550 Matter 164/300 Energy 99/100 System Corruption 0% Temperature Cool (9) Movement Core (50) Location -8/Materials Parts ------- > --- POWER (2) -------- (None) > --- PROPULSION (3) --- (None) > --- UTILITY (4) ------ Improved Heat Sink > --- WEAPON (2) ------- (None) > --- INVENTORY (5) ---- Matter Filter Cloak of Protection Hacking Suite System Shield Component Analysis Suite Peak State ------------ > --- POWER ------------ Light Deuterium Engine Light Nuclear Core > --- PROPULSION ------- Aluminum Leg Improved Aluminum Leg Carbon-fiber Leg > --- UTILITY ---------- Large Storage Unit Signal Interpreter Cloak of Protection Hardlight Generator > --- WEAPON ----------- Assault Cannon Flak Cannon > --- INVENTORY -------- Light Nuclear Core Light Treads Light Treads Light Treads Improved Treads Advanced Treads Aluminum Leg Heat Sink Compact Battery Small Matter Pod Advanced Visual Processing Unit Targeting Computer Flak Cannon Flak Cannon [Rating: 33] Favorites ----------- Power Light Deuterium Engine Engine Light Deuterium Engine Power Core Light Nuclear Core Propulsion Aluminum Leg Treads Light Treads Leg Aluminum Leg Utility Large Storage Unit Device Hardlight Generator Storage Large Storage Unit Processor Signal Interpreter Protection Core Shielding Weapon Spread Laser Energy Gun Spread Laser Ballistic Gun Heavy Assault Rifle Ballistic Cannon Flak Cannon Build | -11 -10 -9 -9 -9 -8 -8 ------- Run | Yrd Mat Mat Min Exi Min Mat Slots Evolved 4 | . . 2 . . . 2 Power 1 | . . . . . . 1 Propulsion 1 | . . . . . . 1 Utility 2 | . . 2 . . . . Weapon . | . . . . . . . Parts Attached 56 | 6 6 13 . . 1 30 Power 11 | 1 . 3 . . . 7 Engine 8 | 1 . 3 . . . 4 Core 3 | . . . . . . 3 Reactor . | . . . . . . . Propulsion 19 | 2 2 4 . . . 11 Treads 5 | 2 . . . . . 3 Leg 14 | . 2 4 . . . 8 Wheel . | . . . . . . . Hover . | . . . . . . . Flight . | . . . . . . . Utility 16 | 1 3 4 . . 1 7 Device 9 | . . 2 . . 1 6 Storage 3 | 1 1 . . . . 1 Processor 1 | . 1 . . . . . Hackware . | . . . . . . . Protection 3 | . 1 2 . . . . Artifact . | . . . . . . . Weapon 10 | 2 1 2 . . . 5 Energy Gun 4 | 2 1 1 . . . . Energy Cannon . | . . . . . . . Ballistic Gun 1 | . . 1 . . . . Ballistic Cannon 5 | . . . . . . 5 Launcher . | . . . . . . . Special Weapon . | . . . . . . . Impact Weapon . | . . . . . . . Slashing Weapon . | . . . . . . . Piercing Weapon . | . . . . . . . Special Melee Weapon . | . . . . . . . Unidentified Prototypes 1 | . . . . . . 1 Corrupted Parts 1 | . . . . . 1 . System Corruption 3 | . . . . . 3 . Parts Lost 38 | . 2 9 . . . 27 Power 10 | . . 2 . . . 8 Propulsion 12 | . 1 3 . . . 8 Utility 7 | . . 2 . . . 5 Weapon 9 | . 1 2 . . . 6 Highest Loss Streak 5 | . 2 3 . . . 5 To Critical Strikes . | . . . . . . . Average Slot Usage (%) 95 | . 93 98 100 100 100 92 Engine 9 | . 14 10 11 11 11 6 Core 4 | . . . . . . 9 Treads 3 | . 20 . . . . 1 Leg 20 | . 2 21 22 22 22 24 Device 13 | . . 10 22 22 22 15 Storage 11 | . 14 11 11 11 11 10 Processor 8 | . 1 11 11 11 11 8 Protection 4 | . 12 11 . . . . Energy Gun 11 | . 28 14 11 11 11 4 Ballistic Gun 4 | . . 7 11 11 11 . Ballistic Cannon 5 | . . . . . . 12 Naked Turns . | . . . . . . . Heaviest Build 54 | 10 27 37 37 37 37 54 Greatest Support 63 | 40 40 20 20 20 20 63 Greatest Overweight (x) 3 | . 1 3 1 1 1 2 Average Overweight (x) . | . . 1 1 1 1 . Largest Inventory Capacity 15 | 8 15 15 15 15 15 15 Average Capacity 14 | 7 12 15 15 15 15 14 Most Carried 15 | 6 12 15 15 15 15 15 Average Carried 13 | 2 8 14 15 14 15 13 Final Capacity 15 | 8 15 15 15 15 15 5 Final Carried 15 | 4 11 15 15 15 15 5 Class Distribution -------------------- 63% | Scavenger-Mutant 34% | Mutant Dominant Class ---------------- Mutant | -10/Materials Mutant | -9/Materials Scavenger-Mutant | -9/Mines Scavenger-Mutant | -9/Exiles Scavenger-Mutant | -8/Mines Scavenger-Mutant | -8/Materials Resources | -11 -10 -9 -9 -9 -8 -8 ----------- Run | Yrd Mat Mat Min Exi Min Mat Matter Collected 1147 | 237 98 234 31 . . 547 Remotely . | . . . . . . . Salvage Created 1772 | . 345 714 40 . . 673 Parts 113 | . 22 58 6 . . 27 Haulers Intercepted . | . . . . . . . Recyclers Shooed 2 | . . 2 . . . . Parts Field Recycled . | . . . . . . . Retrieved Matter . | . . . . . . . Parts Self-Destructed . | . . . . . . . Prevented . | . . . . . . . Kills | -11 -10 -9 -9 -9 -8 -8 ------- Run | Yrd Mat Mat Min Exi Min Mat Combat Hostiles Destroyed 55 | . 7 24 3 . . 21 Guns 40 | . 7 23 3 . . 7 Cannons 14 | . . . . . . 14 AOE 1 | . . 1 . . . . Classes Destroyed 10 | . 2 3 . . . 5 Worker 1 | . . . . . . 1 Recycler 1 | . . . . . . 1 Operator 1 | . . . . . . 1 Watcher 4 | . 1 3 . . . . Swarmer 16 | . . 13 3 . . . Grunt 24 | . 7 3 . . . 14 Brawler 2 | . . 1 . . . 1 Duelist 1 | . . . . . . 1 Sentry 9 | . . 7 . . . 2 Hunter 3 | . . . . . . 3 Best Kill Streak 5 | . 2 5 4 . . 5 Combat Bots Only 5 | . 2 5 4 . . 5 Max Kills in Single Turn 2 | . 1 2 1 . . 2 Gunslinging . | . . . . . . . Exploded 1 | . . 1 . . . . Melee . | . . . . . . . Uniques/NPCs Destroyed . | . . . . . . . Combat | -11 -10 -9 -9 -9 -8 -8 -------- Run | Yrd Mat Mat Min Exi Min Mat Hostile Shots Fired 488 | . 56 157 20 . . 255 Missed 129 | . 20 48 8 . . 53 Damage Taken 4816 | . 489 1093 47 . . 3187 Core 1007 | . 137 299 11 . . 560 Absorbed by Shields 352 | . . 60 48 . . 244 Redirected to Shielding 101 | . 23 78 . . . . Core Remaining (%) 55 | 100 45 . . . 22 . Volleys Fired 192 | . 43 59 6 . . 84 Largest 2 | . 2 2 2 . . 2 Hottest 109 | . 80 105 88 . . 109 Shots Fired 357 | . 86 114 12 . . 145 Gun 257 | . 86 114 12 . . 45 Cannon 100 | . . . . . . 100 Launcher . | . . . . . . . Special . | . . . . . . . Kinetic 151 | . . 37 6 . . 108 Thermal 172 | . 73 56 6 . . 37 Explosive . | . . . . . . . Electromagnetic 34 | . 13 21 . . . . Robot Hit Streak 10 | . 10 7 6 . . 9 Robot Miss Streak 13 | . 3 7 13 . . 9 Penetration Max . | . . . . . . . Secondary Targets 6 | . 1 3 2 . . . Max Gunslinging Chain 1 | . 1 1 1 . . . Shots Hit Robots 267 | . 61 78 6 . . 122 Core Hits 231 | . 18 71 6 . . 136 Critical Kills . | . . . . . . . Critical Parts Destroyed . | . . . . . . . Critical Strikes 1 | . 1 . . . . . Corrupt 1 | . 1 . . . . . Melee Attacks . | . . . . . . . Impact . | . . . . . . . Slashing . | . . . . . . . Piercing . | . . . . . . . Sneak Attacks . | . . . . . . . Combat Hostiles . | . . . . . . . Follow-up Attacks . | . . . . . . . Damage Inflicted 4282 | . 751 1182 59 . . 2290 Guns 2375 | . 706 1092 59 . . 518 Cannons 1769 | . . . . . . 1769 Explosions 135 | . 45 90 . . . . Melee . | . . . . . . . Ramming 3 | . . . . . . 3 Kinetic 2154 | . . 304 15 . . 1835 Thermal 1834 | . 627 711 44 . . 452 Explosive . | . . . . . . . Electromagnetic 291 | . 124 167 . . . . Impact . | . . . . . . . Slashing . | . . . . . . . Piercing . | . . . . . . . Highest Corruption 3 | . . . . . 3 . Average Corruption 3 | . . . . . 3 . Corruption Purged . | . . . . . . . Corruption Blocked . | . . . . . . . Overload Shots . | . . . . . . . Overflow Damage 27 | . . 27 . . . . Projectiles . | . . . . . . . Explosions 27 | . . 27 . . . . Melee . | . . . . . . . Knockbacks 38 | . . . . . . 38 Impact . | . . . . . . . Kinetic 35 | . . . . . . 35 Secondary 3 | . . . . . . 3 Self-Inflicted Damage 67 | . 30 37 . . . . Shots 2 | . 1 1 . . . . Rammed . | . . . . . . . Targets Rammed 2 | . . 1 . . . 1 Kicked 2 | . . 1 . . . 1 Crushed . | . . . . . . . Highest Temperature 432 | . 288 139 126 . . 432 Average Temperature 88 | . 96 38 65 . . 119 Received Heat Transfer 1712 | . 270 157 . . . 1285 Effects 3 | . . . . . . 3 Shutdowns 1 | . . . . . . 1 Energy Bleed 1 | . . . . . . 1 Damage (major) 1 | . . . . . . 1 Siege Activations . | . . . . . . . Robots Corrupted . | . . . . . . . Combat Hostiles . | . . . . . . . Parts Fried 1 | . . 1 . . . . Impact Corruptions . | . . . . . . . Robots Melted . | . . . . . . . Combat Hostiles . | . . . . . . . Parts Melted 3 | . 2 1 . . . . Heat Transferred 3080 | . 1375 1110 50 . . 545 Parts Sabotaged . | . . . . . . . Parts Stolen . | . . . . . . . Parts Stripped . | . . . . . . . Power Chain Reactions 2 | . 1 1 . . . . Alert | -11 -10 -9 -9 -9 -8 -8 ------- Run | Yrd Mat Mat Min Exi Min Mat Peak Influence 245 | . 180 245 162 . . 160 Initial 62 | . . 7 62 . . . Average 64 | . 37 86 147 . . 67 Maximum Alert Level 1 | . . 1 . . . . Low Security (%) 98 | 100 100 96 100 . 100 100 Level 1 1 | . . 3 . . . . Level 2 . | . . . . . . . Level 3 . | . . . . . . . Level 4 . | . . . . . . . Level 5 . | . . . . . . . High Security . | . . . . . . . Max Security . | . . . . . . . Squads Dispatched 13 | . 2 3 . . . 8 Investigation 3 | . 1 . . . . 2 Extermination . | . . . . . . . Reinforcement 10 | . 1 3 . . . 6 Assault . | . . . . . . . Garrison . | . . . . . . . Intercept . | . . . . . . . Searches Triggered . | . . . . . . . Construction Impeded 1 | . . 1 . . . . Haulers Reinforced . | . . . . . . . Active Scanning Responses . | . . . . . . . Cargo Convoy Interrupts . | . . . . . . . Stealth | -11 -10 -9 -9 -9 -8 -8 --------- Run | Yrd Mat Mat Min Exi Min Mat Distress Signals 9 | . 3 2 . . . 4 Communications Jammed . | . . . . . . . Distress Signals . | . . . . . . . Times Spotted 94 | . 13 31 3 . . 47 Peak Tracking Total 7 | . 3 7 3 . . 6 Tactical Retreats 9 | . 2 2 . . . 5 Traps | -11 -10 -9 -9 -9 -8 -8 ------- Run | Yrd Mat Mat Min Exi Min Mat Traps Triggered 2 | . . . . . . 2 Indirectly . | . . . . . . . Trap Hack Attempts . | . . . . . . . Triggered . | . . . . . . . Disarmed 1 | . 1 . . . . . Reprogrammed . | . . . . . . . Reused . | . . . . . . . Traps Extracted . | . . . . . . . Installed . | . . . . . . . Triggered . | . . . . . . . Machines | -11 -10 -9 -9 -9 -8 -8 ---------- Run | Yrd Mat Mat Min Exi Min Mat Machines Disabled 3 | . 1 1 1 . . . Max in Single Turn 1 | . 1 1 1 . . . Machines Repaired . | . . . . . . . Machines Dismantled . | . . . . . . . Machines Sabotaged . | . . . . . . . Overloaded Fab Kills . | . . . . . . . Hacking | -11 -10 -9 -9 -9 -8 -8 --------- Run | Yrd Mat Mat Min Exi Min Mat Machines Accessed 16 | . 3 7 . 1 . 5 Terminals 12 | . 2 6 . . . 4 Fabricators . | . . . . . . . Repair Stations . | . . . . . . . Recycling Units 2 | . 1 . . . . 1 Scanalyzers 1 | . . 1 . . . . Garrison Access . | . . . . . . . Total Hacks 63 | . 9 19 . 23 . 12 Successful 42 | . 3 11 . 23 . 5 Failed 21 | . 6 8 . . . 7 Catastrophic 5 | . 3 1 . . . 1 Database Lockouts . | . . . . . . . Manual 20 | . 5 9 . 1 . 5 Terminals 30 | . 7 13 . . . 10 Fabricators . | . . . . . . . Repair Stations . | . . . . . . . Recycling Units 4 | . 2 . . . . 2 Scanalyzers 6 | . . 6 . . . . Garrison Access . | . . . . . . . Terminal Hacks 35 | . 2 7 . 23 . 3 Record 23 | . . . . 23 . . Robot Analysis 1 | . . . . . . 1 Repair Station Index 1 | . . . . . . 1 Scanalyzer Index 1 | . . . . . . 1 Alert Level 1 | . . 1 . . . . Unreport Threat 2 | . . 2 . . . . Locate Traps 1 | . . 1 . . . . Disarm Traps 1 | . 1 . . . . . Surveillance Status 1 | . . 1 . . . . Investigation Status 1 | . . 1 . . . . Zone Layout 2 | . 1 1 . . . . Fabricator Hacks . | . . . . . . . Repair Station Hacks . | . . . . . . . Recycling Unit Hacks 3 | . 1 . . . . 2 Report Inventory 1 | . . . . . . 1 Retrieve Components 2 | . 1 . . . . 1 Scanalyzer 4 | . . 4 . . . . Insert Component 2 | . . 2 . . . . Analyze 2 | . . 2 . . . . Garrison Access Hacks . | . . . . . . . Unauthorized Hacks . | . . . . . . . Terminals . | . . . . . . . Fabricators . | . . . . . . . Repair Stations . | . . . . . . . Recycling Units . | . . . . . . . Scanalyzers . | . . . . . . . Garrison Access . | . . . . . . . Data Cores Recovered . | . . . . . . . Used . | . . . . . . . Hacking Detections 12 | . 3 5 . . . 4 Full Trace Events 5 | . 2 1 . . . 2 Feedback Events . | . . . . . . . Feedback Blocked . | . . . . . . . Robot Schematics Acquired . | . . . . . . . Robots Built . | . . . . . . . Authchips . | . . . . . . . Time . | . . . . . . . Total Robot Build Rating . | . . . . . . . Part Schematics Acquired 2 | . . 2 . . . . Parts Built . | . . . . . . . Authchips . | . . . . . . . Time . | . . . . . . . Total Part Build Rating . | . . . . . . . Parts Repaired . | . . . . . . . Time . | . . . . . . . Parts Recycled . | . . . . . . . Recycled Matter . | . . . . . . . Retrieved Matter . | . . . . . . . Retrieved Components 19 | . 10 . . . . 9 Parts Scanalyzed 2 | . . 2 . . . . Part Schematics Acquired 2 | . . 2 . . . . Parts Damaged . | . . . . . . . Bothacking | -11 -10 -9 -9 -9 -8 -8 ------------ Run | Yrd Mat Mat Min Exi Min Mat Used RIF Installer . | . . . . . . . Robots Hacked . | . . . . . . . Non-combat . | . . . . . . . Combat . | . . . . . . . Robot Hacks Applied . | . . . . . . . Relay Couplers Released . | . . . . . . . Fabnet Peak Effective % . | . . . . . . . Robots Rewired . | . . . . . . . Allies Hacked . | . . . . . . . Hacks Repelled . | . . . . . . . Allies | -11 -10 -9 -9 -9 -8 -8 -------- Run | Yrd Mat Mat Min Exi Min Mat Total Allies . | . . . . . . . Largest Group . | . . . . . . . Highest-Rated Group . | . . . . . . . Highest-Rated Ally . | . . . . . . . Total Orders . | . . . . . . . Ally Attacks . | . . . . . . . Total Damage . | . . . . . . . Kills . | . . . . . . . Allies Corrupted . | . . . . . . . Allies Melted . | . . . . . . . Intel | -11 -10 -9 -9 -9 -8 -8 ------- Run | Yrd Mat Mat Min Exi Min Mat Robot Analysis Total 1 | . . . . . . 1 Derelict Logs Recovered . | . . . . . . . Drone Launches . | . . . . . . . Drone Recoveries . | . . . . . . . Exploration | -11 -10 -9 -9 -9 -8 -8 ------------- Run | Yrd Mat Mat Min Exi Min Mat Turns Passed 6987 | 80 990 1607 64 935 312 2999 Spaces Moved 3080 | 45 406 682 25 492 164 1266 Core 76 | 4 . . . . . 72 Treads 554 | 41 366 . . . . 147 Legs 2450 | . 40 682 25 492 164 1047 Wheels . | . . . . . . . Hover . | . . . . . . . Flight . | . . . . . . . Fastest Speed 50 | 50 160 190 190 190 190 50 Average Speed 183 | 150 182 190 190 190 190 178 Slowest Speed 330 | 160 240 330 190 190 190 260 Overloaded Moves . | . . . . . . . Propulsion Burnouts . | . . . . . . . Robots Hopped . | . . . . . . . Cave-ins Triggered . | . . . . . . . Exploration Rate (%) 39 | 4 53 43 6 73 40 58 Regions Visited 6 Branch Regions 3 Pre-discovered Areas 1 | . . . . 1 . . Known Exits Taken 5 | . 1 1 1 1 1 . Unknown Exits Taken 1 | 1 . . . . . . Scrap Searched . | . . . . . . . Spaces Dug . | . . . . . . . Terrain Destroyed 9 | . 3 3 . . . 3 Melee . | . . . . . . . Projectile 3 | . . . . . . 3 AOE 6 | . 3 3 . . . . Terrain Rammed . | . . . . . . . Walls Destroyed . | . . . . . . . Machines Disabled . | . . . . . . . Actions | -11 -10 -9 -9 -9 -8 -8 --------- Run | Yrd Mat Mat Min Exi Min Mat Total 4065 | 56 570 885 30 493 164 1867 Wait 625 | . 99 90 . . . 436 Move 3074 | 44 405 681 24 491 163 1266 Hop . | . . . . . . . Pick Up 74 | 6 12 28 . 1 . 27 Fast Attach 15 | 4 1 . . . . 10 Attach 33 | 2 4 11 . . . 16 Detach 3 | . 2 . . . . 1 Swap 8 | . 1 2 . . 1 4 Drop 39 | . 3 13 . 1 . 22 Fire 192 | . 43 59 6 . . 84 Melee . | . . . . . . . Ram . | . . . . . . . Kick 2 | . . 1 . . . 1 Crush . | . . . . . . . Escape Stasis . | . . . . . . . Rewire . | . . . . . . . Trap . | . . . . . . . Miscellaneous . | . . . . . . . Route ------- -11/Scrapyard -10/Materials (discovered 2 exits: *Mat / [*Min]) -9/Materials -9/Mines -9/Exiles (discovered 2 exits: *Min x2) -8/Mines -8/Materials History --------- Turn | Location | Event 7 | -11/Scrapyard | Discovered new exit (range 16) 81 | -11/Scrapyard | Entered Materials 307 | -10/Materials | Build established: Mutant 314 | -10/Materials | Discovered new exit (range 12) 564 | -10/Materials | Discovered new exit (range 16) 985 | -10/Materials | Identified exit to Materials 1028 | -10/Materials | Core integrity fell below 50% 1071 | -10/Materials | Entered another Materials area 1071 | -9/Materials | Evolved 2 slots: Utility x2 1550 | -9/Materials | Lost 3 parts (1n2w) 1966 | -9/Materials | Core integrity fell below 50% 2069 | -9/Materials | Discovered new exit (range 15) 2179 | -9/Materials | Identified exit to Mines 2573 | -9/Materials | Build established: Scavenger-Mutant 2678 | -9/Materials | Entered Mines 2734 | -9/Mines | Deemed a non-threat by the Exiles lab entrance 2734 | -9/Mines | Discovered new exit (range 5) 2740 | -9/Mines | Identified exit to Exiles 2742 | -9/Mines | Entered Exiles 2773 | -9/Exiles | Discovered new exit (range 14) 2796 | -9/Exiles | Identified exit to Mines 2837 | -9/Exiles | Met 8R-AWN 2868 | -9/Exiles | Met EX-HEX 2969 | -9/Exiles | Met EX-DEC 3043 | -9/Exiles | Learned location of Zion (-7) 3145 | -9/Exiles | Discovered exit to Mines (range 11) 3311 | -9/Exiles | Met EX-BIN 3356 | -9/Exiles | Aligned with FarCom system 3358 | -9/Exiles | Given EX-Vault access code 3474 | -9/Exiles | Opened EX-Vault 3490 | -9/Exiles | Found Prototype Device 3529 | -9/Exiles | Warned to stay clear of 0b10 Research branches 3677 | -9/Exiles | Left Exiles lab with Cloak of Protection 3677 | -9/Exiles | Entered Mines 3932 | -8/Mines | Discovered new exit (range 15) 3957 | -8/Mines | Identified exit to Materials 3989 | -8/Mines | Entered Materials 3989 | -8/Materials | Evolved 2 slots: Power x1, Propulsion x1 4102 | -8/Materials | Lost 3 parts (1p1n1w) 4179 | -8/Materials | Identified Cloak of Protection 4180 | -8/Materials | Lost 3 parts (1p2u) 5646 | -8/Materials | Lost 3 parts (2p1u) 6506 | -8/Materials | Lost 4 parts (2p1n1w) 6581 | -8/Materials | Core integrity fell below 50% 6684 | -8/Materials | Lost 5 parts (2p2n1w) 6906 | -8/Materials | Core integrity fell below 20% 6935 | -8/Materials | Lost 3 parts (1n1u1w) 6988 | -8/Materials | Destroyed by Y-45 Defender with Heavy Assault Rifle Last Messages --------------- Penetrated by Slug. Flak Cannon destroyed. Dropped Lrg. Storage Unit. Penetrated by Slug. Terminal disabled. Penetrated by Slug. T-07 Excavator is excavating. Triggered Alarm Trap. An alarm sounds. ALERT: Alarm triggered, dispatching investigation squad. T-07 Excavator is excavating. U-05 Engineer lays Concrete. T-07 Excavator is excavating. U-05 Engineer lays Concrete. ALERT: Suspicious intruders detected, dispatching Cutter reinforcements to area. W-25 Informer sends out distress signal. Imp. Treads destroyed. T-07 Excavator is excavating. Lgt. Treads destroyed. Map ----- +----------------------------------------------------+ | ?????????????????????????????????????????????????? | | ??######?????????????????????????????????????????? | | ### #########+#######?????????????????????????? | | #??????????????????#####??? | | #??????????????????# #??? | | ### ###" #??????????????????# #??? | | ####+#####T """ #??????????????????# #??? | | # #" """ ###????############# +??? | | # # """ ?? #??? | | # # ?? #??? | | # # ?? "% #??? | | # # ###########????##+###########+####? | | # ## ##????????????????????????# %% #? | | # ## #?????????????????????????# " #? | | # ## #??????##?????????????????#""" #? | | # ## #??????# ####?????????????#"" #? | | ###+####### #??????# t #?????????????#""" #? | | ??# #?????# #???????# #?????????????# "" #? | | ### #????## ##?????### ###????????????#""" ! #? | | # ###### ####### !Y #????????????#""" "#? | | # w g x #????????????#""" T#? | | %+ % H [ x% #????????????# " "#? | | # a #????????????# #? | | !### #### ####### #????????????####+####? | | #?# #??###+###?????## ##???????????????# #?### | | #?# #???????????????# @#????????????????# #?# | | !#?# #???????????????# #????????????????# #?# | | #?# #???????????????# #?????############ ### | | #####+#???????????????# ?? # % | | #???????????????# +% | | " "T" #???????????????# # | | " #???????????????######## #####+###### ## | | " #???????????????????????h #??????????# ## | | #????????????????????????? #??????????# #### | | #??????????????????????????#??????????# #??? | | #?????????????????????????????????????# #??? | | #???????????????c?????????????????????# #??? | | ###+########????????????????????????????????# #??? | | ?# +????c?????????????????????????## ##?? | | ## ########???????????????????????????????# #?? | | # #??????????????????????????????????????# ### | | # #?????????????????Y????????????????????# | | # #??????????????????????????????????????# ### | | # ###########??????????###########???????# #?? | | # # ! #??????????# #???????# #?? | | / + #??????????# #???????# % #?? | | # # #???????#??# """ """ #???????# #?? | | # #[ #???????# ?# """ """ #???????# %#?? | | # # #???????# ?# """ """ #???????# ### | | # # #???????# ?# #???????# # | +----------------------------------------------------+ Best States ------------- Heat Dissipation 45 Energy Generation 23 Energy Capacity 250 Matter Stores 300 Matter Capacity 350 Sight Range 16 Terrain Scan Density 10 Cloak Strength 5 Core Shielding 20 Weapon Shielding 33 Evasion (%) 50 Recoil Reduction 3 Matter Filtering 30 Item Schematics ----------------- Lgt. Treads | -9/Materials | Scanalyzed Terrain Scan Processor | -9/Materials | Scanalyzed Robot Schematics ------------------ None Fabricated ------------ Nothing Alien Tech Used ----------------- None Achievements -------------- Tourist Challenges ------------ None Game ------ Seed AccelerationThermicReactor Manual? 0 Play Time 01:11:36 Cumulative 17.2 hours Start 2024.05.11 @ 15:10:37 End 2024.05.11 @ 16:25:25 Sessions 1 Manual Loads 0 Difficulty Rogue Special Mode None Game No. 14 Rogue 14 Adventurer 0 Explorer 0 Win Type - Total 0 Types 0/0/0/0/0/0/0/0/0 Lore% 8 Gallery% 19 Achievement% 14 Wizard Run 0 Options --------- Layout 0 ASCII 0 Keyboard 0 Movement Arrows Keybinds 0 Fullscreen 1 Font 24/Smallcaps Map View 76x50 Zoom Use 0% Tactical HUD 0 Map Filters NONE Filters NONE Steam 1 RUN: 4373600e-d4c6-411d-a42f-cd5107092651